[Event "1000 GM Labor Day Super Swiss 2024"]
[Site "San Jose"]
[Date "2024.09.01"]
[Round "4.1"]
[White "Yoo, Christopher Woojin"]
[Black "Schitco, Ivan"]
[Result "0-1"]
[Annotator "TA"]
[ECO "D15"]
[WhiteElo "2616"]
[BlackElo "2518"]
[PlyCount "84"]
[EventDate "2024.08.30"]
[EventType "swiss"]
[EventCountry "USA"]
[SourceTitle "playchess.com"]
[Source "ChessBase"]
[SourceQuality "1"]
[TimeControl "5400+30"]

{[%evp 9,84,-21,-15,-21,-22,-66,0,6,0,-21,-8,-6,-22,-6,0,6,5,31,0,-32,-25,-36,-45,-37,-43,-24,-18,-20,-17,-12,-10,-17,-12,-9,-7,-18,0,-63,-56,-56,-53,-197,-198,-197,-196,-196,-70,-204,-189,-189,-196,-200,-216,-249,-252,-248,-249,-248,-267,-351,-253,-441,-441,-441,-441,-267,-267,-29948,-10813,-29967,-29967,-29969,-29969,-29970,-29972,-29972,-29971]} 1. d4 {[%emt 0:00:35]} d5 {[%emt 0:00:06]} 2. Nf3 {[%emt 0:00:34]} Nf6 {[%emt 0:00:08]} 3. c4 {[%emt 0:00:04]} c6 {[%emt 0:00:05]} 4. Nc3 {[%emt 0:00:14]} dxc4 {[%emt 0:00:05]} 5. e4 {[%emt 0:01:15]} b5 {[%emt 0:00:07]} 6. Be2 {[%emt 0:00:04]} e6 {[%emt 0:00:14]} 7. a4 {[%emt 0:00:34]} Bb7 {[%emt 0:00:10]} (7... b4 $15 8. Nb1 Nxe4) 8. axb5 $11 {[%emt 0:01:35] The position is equal.} cxb5 {[%emt 0:00:10]} 9. e5 {[%emt 0:00:08]} Ne4 {[%emt 0:26:11]} 10. Nxb5 {[%emt 0:05:24][%cal Oe1g1] 0-0! is the strong threat.} Bb4+ {[%emt 0:00:25]} 11. Kf1 $1 {[%emt 0:01:09]} O-O {[%emt 0:08:40]} 12. Bxc4 {[%emt 0:05:04][%cal Oh2h4]} Nc6 {[%emt 0:16:36]} 13. Bd3 {[%emt 0:05:01]} f5 {[%emt 0:06:13]} 14. Qb3 {[%emt 0:04:14][%cal Oc1e3]} (14. Be3 {simplifies} a6 15. Nc3 Nxc3 16. bxc3 Bxc3 17. Rc1) 14... a6 {[%emt 0:04:32]} 15. Qxe6+ {[%emt 0:05:51]} Kh8 {[%emt 0:00:15]} 16. Nd6 {[%emt 0:01:31]} Nxd6 {[%emt 0:03:55]} 17. exd6 {[%emt 0:00:15]} Bxd6 {[%emt 0:05:11][%cal Oc6d4]} 18. Bg5 {[%emt 0:04:23]} (18. Bxf5 $2 Bc8 19. Qd5 Bxf5 (19... Rxf5 20. Qxc6 Bd7 21. Qe4 $17) 20. Qxc6 Bd3+ 21. Kg1 Rc8 $19) 18... Qc7 {[%emt 0:01:31]} 19. Rc1 {[%emt 0:04:04][%cal Oh2h4]} (19. Bxf5 $2 Bc8 20. Qc4 Rxf5 $19 (20... Bxf5 $2 21. d5 $19)) 19... Rae8 {[%emt 0:01:16]} 20. Qb3 {[%emt 0:58:31]} Bf4 {[%emt 0:02:54]} 21. Bxf4 {[%emt 0:00:00]} Qxf4 {[%emt 0:00:05]} 22. Ra1 {[%emt 0:00:00]} (22. Rc5 {simplifies} Rb8 23. Qc3 Ne7 24. Bc4) 22... Nb4 {[%emt 0:08:52]} 23. Qxb4 {[%emt 0:00:00]} ({White should try} 23. Bc4 $1 $11 Bxf3 24. gxf3) 23... Bxf3 $15 {[%emt 0:00:04]} 24. h3 {[%emt 0:00:00][%cal Od3a6]} (24. gxf3 Qxf3 25. Rg1 Qxd3+ 26. Kg2 Qe4+ 27. Kf1 Rf6 $19) 24... Rb8 {[%emt 0:02:29]} 25. Qc5 {[%emt 0:00:00]} (25. Qa3 $1 $15 Bd5 26. b4) 25... Rfc8 {[%emt 0:06:30]} 26. Qe5 {[%emt 0:00:00]} Rc1+ $40 {[%emt 0:00:14][%mdl 128] Black is out for blood.} 27. Rxc1 {[%emt 0:00:00]} Qxc1+ {[%emt 0:00:04]} 28. Qe1 {[%emt 0:00:00] [#]} Rc8 {[%emt 0:02:18]} 29. gxf3 {[%emt 0:00:00]} (29. Rh2 Qxb2 30. gxf3 Rc1 $19 (30... Qxd4 $2 31. Bxf5 Rd8 32. Be4 $18) (30... Qxd4 $2 31. Bxf5 Rd8 32. Rh1 $18)) 29... Qxe1+ {[%emt 0:00:04]} (29... Qxb2 $2 {loses.} 30. Qe5 (30. Bxf5 Rc1 $17) 30... Qc1+ 31. Kg2 Qg5+ 32. Kh2 $18) 30. Kxe1 $19 {[%emt 0:00:00][%mdl 4096] Endgame. KRB-KR} Rc1+ {[%emt 0:00:02]} 31. Kd2 {[%emt 0:00:00]} Rxh1 {[%emt 0:00:05]} 32. Bxa6 {[%emt 0:00:00]} Rxh3 {[%emt 0:01:33] KR-KB} 33. b4 {[%emt 0:00:00]} Rxf3 {[%emt 0:02:38]} 34. b5 {[%emt 0:00:00]} Ra3 {[%emt 0:00:57]} 35. Bc8 $2 {[%emt 0:00:00]} (35. d5 Kg8 36. Bc8) 35... g6 {[%emt 0:00:54]} 36. b6 {[%emt 0:00:00] [#]} Rb3 $1 {[%emt 0:00:18]} 37. b7 {[%emt 0:00:00] [#]} h5 $1 {[%emt 0:01:07] White must now prevent ...h4.} 38. Kc2 $2 {[%emt 0:00:00]} (38. d5 $19 Kg7 39. Ke2) 38... Rb6 {[%emt 0:00:08] ( -> ...h4)} 39. d5 {[%emt 0:00:00]} Kg7 {[%emt 0:00:05] Black mates.} 40. d6 {[%emt 0:00:00]} Kf6 {[%emt 0:00:23]} (40... Rxd6 $2 {is the wrong capture.} 41. b8=Q (41. b8=B $2 Rc6+ 42. Kd1 Rxc8 $19) 41... Rc6+ 42. Kb3 $18) 41. d7 {[%emt 0:00:00]} Ke7 {[%emt 0:00:53]} 42. Kd3 {[%emt 0:00:00]} h4 {[%emt 0:00:06] Weighted Error Value: White=0.49/Black=0.06 (flawless) .  Mistake:       	White=4     	Black=1      Inaccurate:     	White=4     	---        OK:         	White=15    	Black=12     Best:        	White=3     	Black=7      Strong:       	White=1     	Black=2} 0-1

[Event "1000 GM Labor Day Super Swiss 2024"]
[Site "San Jose"]
[Date "2024.09.01"]
[Round "4.3"]
[White "Cordova, Emilio"]
[Black "Sheng, Joshua"]
[Result "1/2-1/2"]
[Annotator "TA"]
[ECO "E62"]
[WhiteElo "2519"]
[BlackElo "2474"]
[PlyCount "42"]
[EventDate "2024.08.30"]
[EventType "swiss"]
[EventCountry "USA"]
[SourceTitle "playchess.com"]
[Source "ChessBase"]
[SourceQuality "1"]
[TimeControl "5400+30"]

{[%evp 16,42,35,34,36,19,24,17,17,8,25,19,25,16,25,13,35,33,32,58,40,0,1,0,6,0,53,64,113]} 1. Nf3 {[%emt 0:01:23]} Nf6 {[%emt 0:06:57]} 2. g3 {[%emt 0:01:56]} g6 {[%emt 0:00:10]} 3. Bg2 {[%emt 0:02:41]} Bg7 {[%emt 0:00:24]} 4. O-O {[%emt 0:00:37]} O-O {[%emt 0:00:02]} 5. d4 {[%emt 0:01:23][%cal Bd2d4,Bd4d5][%mdl 32]} d6 {[%emt 0:00:03]} 6. c4 {[%emt 0:01:14]} Nc6 {[%emt 0:00:03]} 7. Nc3 {[%emt 0:00:59]} e5 {[%emt 0:00:03]} 8. d5 {[%emt 0:02:29]} Nb8 {[%emt 0:00:14][%cal Bc6b8,Bb8a6,Ba6c5][%mdl 32]} 9. e4 {[%emt 0:00:22]} a5 {[%emt 0:00:47]} 10. b3 {[%emt 0:00:27]} Na6 {[%emt 0:01:09]} 11. Re1 {[%emt 0:00:54]} Nc5 {[%emt 0:01:50] The position is equal.} 12. Rb1 {[%emt 0:00:20]} Ne8 {[%emt 0:05:36]} 13. Be3 {[%emt 0:03:03]} b6 {[%emt 0:01:56]} 14. a3 {[%emt 0:07:22][%cal Ba2a3,Ba3b4][%mdl 32]} f5 {[%emt 0:00:50][%cal Bf7f5,Bf5e4][%mdl 32]} 15. b4 {[%emt 0:00:15]} axb4 {[%emt 0:01:07]} 16. axb4 {[%emt 0:00:17]} fxe4 {[%emt 0:15:24]} 17. Ng5 {[%emt 0:11:02]} Nd3 {[%emt 0:00:26]} 18. Ne6 {[%emt 0:08:47]} Bxe6 {[%emt 0:00:30]} 19. dxe6 {[%emt 0:00:05]} Nxe1 {[%emt 0:00:25]} 20. Qxe1 {[%emt 0:00:16]} Qc8 {[%emt 0:12:54]} ({Black should play} 20... Nf6 $11) 21. Bxe4 $14 {[%emt 0:01:19]} Nf6 {[%emt 0:00:14] Weighted Error Value: White=0.12 (very precise) /Black=0.13 (very precise) .  Mistake:       	---       	Black=2      Inaccurate:     	White=1     	---        OK:         	White=1     	Black=7      Best:        	White=1     	Black=1} 1/2-1/2

[Event "1000 GM Labor Day Super Swiss 2024"]
[Site "San Jose"]
[Date "2024.09.01"]
[Round "4.4"]
[White "Chen, Ryo"]
[Black "Corrales Jimenez, Fidel"]
[Result "1/2-1/2"]
[Annotator "TA"]
[ECO "B89"]
[WhiteElo "2408"]
[BlackElo "2564"]
[PlyCount "69"]
[EventDate "2024.08.30"]
[EventType "swiss"]
[EventCountry "USA"]
[SourceTitle "playchess.com"]
[Source "ChessBase"]
[SourceQuality "1"]
[TimeControl "5400+30"]

{[%evp 16,69,21,19,39,36,48,0,0,-10,-20,0,0,0,0,0,0,0,0,0,0,0,0,0,19,6,114,135,126,135,177,12,0,0,2,0,0,0,24,31,31,20,37,42,49,20,23,14,15,5,3,4,6,4,8,8]} 1. e4 {[%emt 1:31:00]} c5 {[%emt 0:02:59]} 2. Nf3 {[%emt 0:00:00]} d6 {[%emt 0:00:10]} 3. d4 {[%emt 0:00:00]} cxd4 {[%emt 0:00:07]} 4. Nxd4 {[%emt 0:00:00]} Nf6 {[%emt 0:00:06]} 5. Nc3 {[%emt 0:00:00]} Nc6 {[%emt 0:00:04]} 6. Bc4 {[%emt 0:00:00]} e6 {[%emt 0:00:11]} 7. Be3 {[%emt 0:00:00]} a6 {[%emt 0:00:37]} 8. Qe2 {[%emt 0:00:00]} Bd7 {[%emt 0:00:05]} 9. Bb3 {[%emt 0:00:00]} Na5 {[%emt 0:01:11]} 10. f4 {[%emt 0:00:00]} Qc7 {[%emt 0:07:01]} 11. g4 {[%emt 0:00:00]} (11. Bf2 $14) 11... b5 $11 {[%emt 0:07:07][%cal Bb7b5,Bb5b4,Bb4c3,Bc3b2][%mdl 32]} 12. g5 {[%emt 0:00:00]} b4 $1 {[%emt 0:00:19]} 13. gxf6 {[%emt 0:00:00]} bxc3 {[%emt 0:00:14]} 14. fxg7 {[%emt 0:00:00]} Bxg7 {[%emt 0:00:06]} 15. O-O-O {[%emt 0:00:00][%cal Be1c1,Bc1b1,Bb1b2][%mdl 32]} cxb2+ {[%emt 0:00:27]} 16. Kb1 {[%emt 0:00:00]} Nxb3 {[%emt 0:10:26]} 17. axb3 {[%emt 0:00:00]} Rc8 {[%emt 0:12:41]} 18. Rhg1 {[%emt 0:00:00] Chess con chili.} Bf6 {[%emt 0:00:17]} 19. Rg2 {[%emt 0:00:00] Active counter play!} e5 {[%emt 0:12:40]} 20. fxe5 {[%emt 0:00:00]} Qa5 {[%emt 0:12:13]} 21. Kxb2 $16 {[%emt 0:00:00]} (21. exf6 $2 Qa1#) 21... Bxe5 {[%emt 0:00:03]} 22. Kb1 {[%emt 0:00:00]} Be6 {[%emt 0:32:26]} 23. Qd2 $2 {[%emt 0:00:00] [#]} ({White should try} 23. Qf2 $18) 23... Qxd2 $11 {[%emt 0:00:00]} 24. Rgxd2 {[%emt 0:00:00]} Rg8 {[%emt 0:00:00]} 25. Nf3 {[%emt 0:00:00]} Rg4 {[%emt 0:00:00]} ({Much weaker is} 25... Bg4 $6 26. Rg1 f6 27. Nxe5 dxe5 28. Rd6 $14) 26. Bg5 {[%emt 0:00:48]} Rxe4 {[%emt 0:00:00]} 27. Nxe5 {[%emt 0:00:05]} Rxe5 {[%emt 0:00:00]} 28. Bf4 {[%emt 0:00:10]} Rb5 {[%emt 0:00:00]} 29. Bxd6 {[%emt 0:00:15]} a5 {[%emt 0:00:00]} 30. Rg1 {[%emt 0:03:17]} Kd7 {[%emt 0:00:00]} 31. Bf4+ {[%emt 0:10:25]} Kc6 {[%emt 0:00:00] The position is equal.} 32. Rg5 {[%emt 0:00:00]} Rxg5 {[%emt 0:00:40]} 33. Bxg5 {[%emt 0:00:00]} Rb8 {[%emt 0:00:07]} 34. Rd4 {[%emt 0:00:00]} Rb4 {[%emt 0:02:03]} 35. Rxb4 {[%emt 0:00:00] Weighted Error Value: White=0.16 (very precise) /Black=0.12 (very precise) .  Missed win:     	White=1     	---        Mistake:       	White=1     	Black=1      Inaccurate:     	White=1     	Black=1      OK:         	White=15    	Black=12     Best:        	White=3     	Black=2      Strong:       	---       	Black=1} 1/2-1/2

[Event "1000 GM Labor Day Super Swiss 2024"]
[Site "San Jose"]
[Date "2024.09.01"]
[Round "4.5"]
[White "Sathish, Pranav"]
[Black "Harsha Bharathakoti"]
[Result "0-1"]
[Annotator "TA"]
[ECO "A12"]
[WhiteElo "2337"]
[BlackElo "2550"]
[PlyCount "118"]
[EventDate "2024.08.30"]
[EventType "swiss"]
[EventCountry "USA"]
[SourceTitle "playchess.com"]
[Source "ChessBase"]
[SourceQuality "1"]
[TimeControl "5400+30"]

{[%evp 28,118,0,0,0,0,12,0,4,0,0,0,0,0,0,0,0,0,0,0,0,0,9,12,18,0,0,0,0,0,0,0,0,0,0,0,0,0,0,0,0,0,0,0,0,0,0,0,0,-18,0,-56,-56,-56,-56,-84,-56,-56,-8,-8,0,0,0,0,0,0,0,0,0,-8,-8,-8,0,-8,-8,-65,-65,-169,-169,-7670,-5600,-29964,-29964,-29967,-29968,-29968,-29970,-29970,-29972,-29977,-29977,-29978,-29979]} 1. Nf3 {[%emt 0:00:01]} d5 {[%emt 0:03:45]} 2. b3 {[%emt 0:00:23]} c6 {[%emt 0:00:46]} 3. Bb2 {[%emt 0:00:37]} h6 {[%emt 0:00:08]} 4. c4 {[%emt 0:00:38]} Bf5 {[%emt 0:00:26]} 5. g3 {[%emt 0:06:01]} e6 {[%emt 0:00:40]} 6. Bg2 {[%emt 0:00:08]} Nf6 {[%emt 0:00:58]} 7. O-O {[%emt 0:01:55]} Nbd7 {[%emt 0:03:37]} 8. d3 {[%emt 0:00:05]} Be7 {[%emt 0:09:49]} 9. Nbd2 {[%emt 0:00:49]} O-O {[%emt 0:00:19]} 10. Qc2 {[%emt 0:00:06]} Bh7 {[%emt 0:02:22]} 11. a3 {[%emt 0:00:04]} a5 {[%emt 0:00:20]} 12. Ne5 {[%emt 0:00:05]} Qb6 {[%emt 0:08:16] A12: English Opening: 1...c6 with b3 by White.} 13. Nxd7 {[%emt 0:02:04]} Nxd7 {[%emt 0:00:06]} 14. Rab1 {[%emt 0:00:06]} Rfc8 $146 {[%emt 0:13:25]} ({Predecessor:} 14... Qa7 15. Qc3 Bf6 16. Qc2 Be7 17. Qc3 Nf6 18. Rbc1 Rfd8 19. Nf3 Qb6 20. c5 Qc7 {0-1 Mesic,I (2318)-Macias Pino,D (2457) Wch U16 Montesilvano 2023 (9)}) 15. b4 {[%emt 0:09:44]} axb4 {[%emt 0:01:32]} 16. axb4 {[%emt 0:00:02]} Bg6 {[%emt 0:20:41]} (16... Qxb4 $6 17. Bxg7 Qd6 18. Bxh6 $16) (16... Bxb4 $6 17. Bc3 c5 18. cxd5 $16) 17. Rfc1 {[%emt 0:09:05]} Qd8 {[%emt 0:03:12]} ({But not} 17... Qxb4 $6 18. Bxg7 Qa5 19. Ra1 $16 (19. Bxh6 b5 $16) (19. Rxb7 Kxg7 20. Rxd7 Bf6 $14)) (17... Bxb4 $6 18. Bc3 c5 19. cxd5 exd5 20. Bxd5 $16 (20. Bxb4 cxb4 21. Qxc8+ Rxc8 $14)) 18. Qb3 {[%emt 0:16:33]} Bg5 {[%emt 0:10:25]} 19. Qc3 {[%emt 0:04:06]} Bf6 {[%emt 0:00:12]} 20. Qb3 {[%emt 0:00:13]} Bg5 {[%emt 0:03:59]} 21. Qc3 {[%emt 0:00:41]} Bf6 {[%emt 0:01:43]} 22. Qb3 {[%emt 0:00:07]} Bh5 {[%emt 0:07:00]} 23. Nf3 {[%emt 0:03:56]} Bxf3 {[%emt 0:03:31]} 24. Bxf3 {[%emt 0:00:02]} Bxb2 {[%emt 0:01:11]} 25. Qxb2 {[%emt 0:01:19]} Ra4 {[%emt 0:00:57]} 26. Qc2 {[%emt 0:03:00]} Rca8 {[%emt 0:00:36]} 27. cxd5 {[%emt 0:03:35]} cxd5 {[%emt 0:00:04]} 28. Qc7 {[%emt 0:00:23]} Qxc7 {[%emt 0:01:14]} 29. Rxc7 {[%emt 0:00:06]} Ne5 {[%emt 0:00:01]} 30. Rxb7 {[%emt 0:00:26]} Nxf3+ {[%emt 0:00:06]} 31. exf3 {[%emt 0:00:01]} Ra1 {[%emt 0:00:06]} 32. Rf1 {[%emt 0:04:31]} R8a3 {[%emt 0:00:12]} 33. b5 {[%emt 0:04:00]} Rxf1+ {[%emt 0:00:08]} 34. Kxf1 {[%emt 0:00:11]} Rxd3 {[%emt 0:00:04]} 35. Ke2 {[%emt 0:00:46]} Rb3 {[%emt 0:00:04]} 36. f4 {[%emt 0:00:24]} g5 {[%emt 0:01:11]} 37. f5 {[%emt 0:00:25]} exf5 {[%emt 0:01:04]} 38. b6 {[%emt 0:00:04]} Kg7 {[%emt 0:01:12]} 39. Rd7 {[%emt 0:00:08]} (39. Rb8 $11) 39... Rxb6 $15 {[%emt 0:00:08]} 40. Rxd5 {[%emt 0:00:02]} Kf6 {[%emt 0:00:20]} 41. Kf3 {[%emt 0:00:05]} h5 {[%emt 0:00:32]} 42. Rd4 {[%emt 0:00:52] [#]} f4 {[%emt 0:03:57]} (42... g4+ $1 $15 43. Kg2 Rb2) 43. gxf4 $11 {[%emt 0:02:58]} Rb3+ {[%emt 0:00:02]} 44. Kg2 $1 {[%emt 0:00:07]} g4 {[%emt 0:00:02]} 45. Rd5 {[%emt 0:00:05]} h4 {[%emt 0:00:06]} 46. Rg5 $1 {[%emt 0:00:11]} h3+ {[%emt 0:00:09]} 47. Kf1 {[%emt 0:00:04]} Rb1+ {[%emt 0:00:03]} 48. Ke2 {[%emt 0:00:08]} Rg1 {[%emt 0:00:03]} 49. Ke3 {[%emt 0:00:47]} Ke6 {[%emt 0:01:50]} 50. Re5+ {[%emt 0:01:18]} Kd6 {[%emt 0:00:06]} 51. Rh5 {[%emt 0:03:46]} (51. Ke4 $1 $11) 51... Re1+ $15 {[%emt 0:00:03]} 52. Kd2 {[%emt 0:04:38]} ({White must play} 52. Kd3 $1 $15) 52... Rh1 $19 {[%emt 0:00:26]} 53. Rg5 $2 {[%emt 0:02:06] [#]} (53. Rh6+ Kd5 54. Ke3) 53... f5 $1 $19 {[%emt 0:00:24]} ({Weaker is} 53... Rxh2 54. Rxg4 Rxf2+ 55. Ke3 $11) 54. Rxf5 {[%emt 0:00:39]} Rxh2 {[%emt 0:00:04]} 55. Ke3 {[%emt 0:00:03]} Rh1 {[%emt 0:00:04]} 56. Rh5 {[%emt 0:01:20] [#]} h2 $1 {[%emt 0:00:04]} 57. Ke2 {[%emt 0:00:23]} g3 {[%emt 0:00:05]} 58. Kf3 {[%emt 0:00:04]} Rg1 {[%emt 0:00:11]} 59. fxg3 {[%emt 0:00:05]} h1=Q+ {[%emt 0:00:03]} 0-1

[Event "1000 GM Labor Day Super Swiss 2024"]
[Site "San Jose"]
[Date "2024.09.01"]
[Round "4.6"]
[White "Mikaelyan, Arman"]
[Black "Sivakumar, Shaaketh"]
[Result "1-0"]
[Annotator "TA"]
[ECO "A34"]
[WhiteElo "2529"]
[BlackElo "2307"]
[PlyCount "57"]
[EventDate "2024.08.30"]
[EventType "swiss"]
[EventCountry "USA"]
[SourceTitle "playchess.com"]
[Source "ChessBase"]
[SourceQuality "1"]
[TimeControl "5400+30"]

{[%evp 10,57,22,27,49,39,56,29,53,48,54,18,16,2,15,12,8,0,16,4,7,6,0,-12,12,24,17,29,52,41,45,31,7,27,23,0,0,0,0,0,52,55,67,60,56,56,205,208,819,795]} 1. c4 {[%emt 0:00:32]} b6 {[%emt 0:00:25]} 2. e4 {[%emt 0:03:56]} Bb7 {[%emt 0:00:34]} 3. Nc3 {[%emt 0:00:09]} e6 {[%emt 0:00:31]} 4. Nge2 {[%emt 0:00:18]} c5 {[%emt 0:01:49]} 5. d4 {[%emt 0:04:16]} cxd4 {[%emt 0:00:10]} 6. Nxd4 {[%emt 0:00:07]} Bb4 {[%emt 0:04:06][%cal Og8e7]} 7. Ndb5 {[%emt 0:09:06]} Nf6 $1 {[%emt 0:05:25]} 8. Nd6+ {[%emt 0:10:20]} Bxd6 {[%emt 0:00:03] White has an edge.} 9. Qxd6 {[%emt 0:00:08] Nb5 would now be deadly.} Bxe4 {[%emt 0:03:32]} 10. Nb5 {[%emt 0:05:33]} Na6 {[%emt 0:05:09] Repels Nc7+} 11. Qa3 {[%emt 0:01:19][%cal Oc1f4]} Nc5 {[%emt 0:00:02]} 12. Nd6+ {[%emt 0:03:10]} Kf8 {[%emt 0:00:11]} (12... Ke7 $6 13. Bf4 $16) 13. Be3 {[%emt 0:22:10][%cal Ob2b4]} Qe7 {[%emt 0:03:51]} 14. Bxc5 {[%emt 0:02:49]} bxc5 {[%emt 0:00:02]} 15. Qxc5 {[%emt 0:00:09]} Bc6 {[%emt 0:00:16]} 16. O-O-O {[%emt 0:01:11]} Ne4 {[%emt 0:01:01]} 17. Nxe4 {[%emt 0:00:27]} Bxe4 {[%emt 0:00:02]} 18. Rd6 {[%emt 0:03:07]} f6 {[%emt 0:05:31]} 19. f3 {[%emt 0:06:03]} Bc6 {[%emt 0:00:14]} 20. Bd3 {[%emt 0:00:51]} Kf7 {[%emt 0:02:55]} 21. Rd1 {[%emt 0:00:10][%cal Bh1d1,Bd1e1,Be1e6][%mdl 32] aiming for Be4.} Bd5 {[%emt 0:02:33]} 22. Kb1 {[%emt 0:03:38]} (22. cxd5 Rac8 23. dxe6+ dxe6 $16) (22. Bg6+ {simplifies} Kxg6 23. R6xd5 Qxc5 24. Rxc5 Rhc8 25. Rxc8 Rxc8 26. Rxd7 Rxc4+ 27. Kd2) 22... Rhc8 {[%emt 0:00:49]} 23. Qa3 $36 {[%emt 0:00:18][%mdl 2048] White fights for an advantage.} Rc6 {[%emt 0:00:10]} 24. c5 {[%emt 0:00:43][%cal Od3c4]} Rac8 {[%emt 0:03:19]} (24... Rxd6 $11 25. cxd6 Qd8) 25. Bb5 $1 $14 {[%emt 0:01:28]} R6c7 {[%emt 0:02:26][%cal Oc8b8]} 26. Re1 {[%emt 0:01:57] And now Rxd5 would win. White is more active.} Bc6 {[%emt 0:02:06]} 27. Bc4 {[%emt 0:05:22]} Rb8 {[%emt 0:11:27] [#]} (27... Kf8 $14) 28. Qd3 $1 $18 {[%emt 0:00:41]} Kg8 $2 {[%emt 0:03:51] [#]} (28... Rbc8 29. b4 (29. Qxh7 Ba4 $16) 29... Ba4) 29. Rexe6 $1 {[%emt 0:04:01][%mdl 512] Weighted Error Value: White=0.06 (flawless) /Black=0.22 (precise) .  Mistake:       	---       	Black=3      Inaccurate:     	White=2     	---        OK:         	White=11    	Black=6      Best:        	---       	Black=5      Strong:       	White=2     	Black=1} 1-0

[Event "1000 GM Labor Day Super Swiss 2024"]
[Site "San Jose"]
[Date "2024.09.01"]
[Round "4.7"]
[White "Guo, Andrew"]
[Black "Koustav Chatterjee"]
[Result "0-1"]
[Annotator "TA"]
[ECO "E08"]
[WhiteElo "2207"]
[BlackElo "2524"]
[PlyCount "58"]
[EventDate "2024.08.30"]
[EventType "swiss"]
[EventCountry "USA"]
[SourceTitle "playchess.com"]
[Source "ChessBase"]
[SourceQuality "1"]
[TimeControl "5400+30"]

{[%evp 17,58,6,14,22,31,0,0,7,16,10,20,-16,-10,-35,-41,-56,-64,-58,-64,-81,-64,-68,-59,-65,-56,-72,-67,-77,-36,-82,-71,-98,-62,-106,-83,-77,-83,-125,-122,-112,-45,-812,-806]} 1. d4 {[%emt 0:00:01]} Nf6 {[%emt 0:01:04]} 2. c4 {[%emt 0:00:27]} e6 {[%emt 0:00:05]} 3. g3 {[%emt 0:00:08]} d5 {[%emt 0:00:05]} 4. Bg2 {[%emt 0:00:06]} Bb4+ {[%emt 0:00:05]} 5. Bd2 {[%emt 0:00:06]} Be7 {[%emt 0:00:13]} 6. Nf3 {[%emt 0:00:07]} O-O {[%emt 0:00:04]} 7. O-O {[%emt 0:00:05]} c6 {[%emt 0:00:03]} 8. Qc2 {[%emt 0:00:04]} Nbd7 {[%emt 0:00:05]} 9. Bf4 {[%emt 1:33:56]} a5 {[%emt 0:00:08]} 10. Rd1 {[%emt 0:00:00]} a4 {[%emt 0:00:07]} 11. Nbd2 {[%emt 0:00:00]} Nh5 {[%emt 0:00:37]} 12. Be3 {[%emt 0:00:00] The position is equal.} f5 {[%emt 0:00:06]} 13. Nf1 {[%emt 0:00:00]} Bd6 {[%emt 0:01:00]} 14. c5 {[%emt 0:00:00]} Bc7 {[%emt 0:03:13]} 15. b4 {[%emt 0:00:00]} f4 {[%emt 0:08:02]} 16. Bd2 {[%emt 0:00:00]} e5 {[%emt 0:00:15]} 17. dxe5 {[%emt 0:00:00]} Nxe5 {[%emt 0:00:05]} 18. Nxe5 {[%emt 0:00:00]} Bxe5 {[%emt 0:00:05]} 19. Bc3 {[%emt 0:00:00]} Qf6 {[%emt 0:00:10]} 20. Bxe5 {[%emt 0:00:00]} Qxe5 {[%emt 0:00:05]} 21. Rac1 {[%emt 0:00:00]} Bg4 {[%emt 0:13:36]} 22. Re1 {[%emt 0:00:00]} Nf6 {[%emt 0:14:55]} 23. Nd2 {[%emt 0:00:00]} (23. Qc3 $15 Qg5 24. f3) 23... Qh5 $36 {[%emt 0:02:19][%mdl 2048] Black has strong initiative.} (23... Bxe2 $2 {loses.} 24. Nf3 Qh5 25. Rxe2 $18 (25. Qxe2 Rae8 $18)) 24. f3 {[%emt 0:00:00]} Bf5 {[%emt 0:18:18]} 25. Qc3 {[%emt 0:00:00]} Bh3 {[%emt 0:00:20] Black is more active.} 26. Nf1 {[%emt 0:00:00]} fxg3 {[%emt 0:01:29]} 27. hxg3 {[%emt 0:00:00]} Rae8 {[%emt 0:00:24]} 28. Qd4 {[%emt 0:00:00]} Nd7 {[%emt 0:01:22]} (28... Re6 $17 {[%cal Of6e4] And now ...Ne4! would win.} 29. Rc3 Rfe8) 29. Kh2 $2 {[%emt 0:00:00][%mdl 8192] [#]} (29. Rc3 $15) 29... Bxg2+ {[%emt 0:00:52] Weighted Error Value: White=0.45/Black=0.13 (very precise) .  Loses game:     	White=1     	---        Mistake:       	White=1     	Black=1      Inaccurate:     	White=4     	Black=2      OK:         	White=4     	Black=5      Best:        	White=2     	Black=2} 0-1